Cogmind - Beta 12 @@@ ROGUE MODE // 2023.11.04 @ 15:05:40 Player: Zirov Result: Self-destructed Performance ------------- Evolutions (1) 500 Regions Visited (3) 600 Robots Destroyed (27) 135 Value Destroyed (525) 525 Prototype IDs (0) 0 Alien Tech Used (0) 0 Bonus (0) 0 TOTAL SCORE: 1760 Bonus ------- None Cogmind --------- Core Integrity 344/400 Matter 300/300 Energy 100/100 System Corruption 0% Temperature Cool (0) Movement Treading (240) Ox1 Location -9/Materials Parts ------- > --- POWER (1) -------- (None) > --- PROPULSION (3) --- Light Treads > --- UTILITY (3) ------ Heat Sink Large Storage Unit Hardened Light Armor Plating > --- WEAPON (2) ------- Beam Cannon Particle Cannon > --- INVENTORY (15) --- Ion Engine Ion Engine Aluminum Leg Small Storage Unit High-capacity Matter Pod (200) Machine Analyzer Signal Interpreter Weapon Shielding Particle Gun Assault Rifle Light Assault Rifle Peak State ------------ > --- POWER ------------ Light Nuclear Core > --- PROPULSION ------- Light Treads Light Treads Aluminum Leg > --- UTILITY ---------- Heat Sink Large Storage Unit Hardened Light Armor Plating > --- WEAPON ----------- Beam Cannon Particle Cannon > --- INVENTORY -------- Ion Engine Ion Engine Small Storage Unit High-capacity Matter Pod Signal Interpreter Weapon Shielding Particle Gun Assault Rifle Light Assault Rifle [Rating: 14] Favorites ----------- Power Light Nuclear Core Engine Ion Engine Power Core Light Nuclear Core Propulsion Light Treads Treads Light Treads Leg Aluminum Leg Utility Large Storage Unit Device Heat Sink Storage Large Storage Unit Processor Targeting Computer Protection Hardened Light Armor Plating Weapon Light Assault Rifle Energy Cannon Beam Cannon Ballistic Gun Light Assault Rifle Build | -11 -10 -10 -9 ------- Run | Jun Mat Min Mat Slots Evolved 2 | . . . 2 Power . | . . . . Propulsion 1 | . . . 1 Utility 1 | . . . 1 Weapon . | . . . . Parts Attached 15 | 6 2 1 6 Power 2 | 1 . 1 . Engine 1 | 1 . . . Core 1 | . . 1 . Reactor . | . . . . Propulsion 4 | 2 . . 2 Treads 3 | 2 . . 1 Leg 1 | . . . 1 Wheel . | . . . . Hover . | . . . . Flight . | . . . . Utility 5 | 1 2 . 2 Device 1 | . . . 1 Storage 2 | 1 1 . . Processor 1 | . 1 . . Hackware . | . . . . Protection 1 | . . . 1 Artifact . | . . . . Weapon 4 | 2 . . 2 Energy Gun . | . . . . Energy Cannon 2 | . . . 2 Ballistic Gun 2 | 2 . . . Ballistic Cannon . | . . . . Launcher . | . . . . Special Weapon . | . . . . Impact Weapon . | . . . . Slashing Weapon . | . . . . Piercing Weapon . | . . . . Special Melee Weapon . | . . . . Unidentified Prototypes . | . . . . Parts Lost 3 | . . . 3 Power 1 | . . . 1 Propulsion 2 | . . . 2 Utility . | . . . . Weapon . | . . . . Highest Loss Streak 3 | . . . 3 To Critical Strikes . | . . . . Average Slot Usage (%) 96 | . 90 100 94 Engine 2 | . 14 . . Core 10 | . . 13 10 Treads 27 | . 28 28 25 Leg 1 | . . . 3 Device 2 | . . . 9 Storage 13 | . 14 14 11 Processor 8 | . 4 14 1 Protection 3 | . . . 10 Energy Cannon 5 | . . . 19 Ballistic Gun 20 | . 28 28 2 Naked Turns . | . . . . Heaviest Build 38 | 13 28 28 38 Greatest Support 60 | 40 40 40 60 Greatest Overweight (x) 1 | 1 . . . Average Overweight (x) . | . . . . Largest Inventory Capacity 15 | 8 15 15 15 Average Capacity 13 | 7 9 15 15 Most Carried 11 | 1 6 10 11 Average Carried 7 | . 3 8 9 Final Capacity 15 | 8 15 15 15 Final Carried 11 | 1 6 9 11 Class Distribution -------------------- 100% | Mutant Dominant Class ---------------- Mutant | -10/Materials Mutant | -10/Mines Mutant | -9/Materials Resources | -11 -10 -10 -9 ----------- Run | Jun Mat Min Mat Matter Collected 618 | 192 98 268 60 Remotely . | . . . . Salvage Created 807 | . 98 339 370 Parts 48 | . 10 17 21 Haulers Intercepted . | . . . . Recyclers Shooed 2 | . 1 1 . Parts Field Recycled . | . . . . Retrieved Matter . | . . . . Parts Self-Destructed . | . . . . Prevented . | . . . . Kills | -11 -10 -10 -9 ------- Run | Jun Mat Min Mat Combat Hostiles Destroyed 19 | . 6 6 7 Guns 12 | . 6 6 . Cannons 7 | . . . 7 Classes Destroyed 7 | . 2 2 3 Recycler 3 | . . 2 1 Mechanic 1 | . . . 1 Operator 2 | . 1 . 1 Watcher 2 | . . . 2 Swarmer 11 | . 6 2 3 Grunt 6 | . . 4 2 Sentry 2 | . . . 2 Best Kill Streak 6 | . 3 2 6 Combat Bots Only 4 | . 3 2 4 Max Kills in Single Turn 1 | . 1 1 1 Gunslinging . | . . . . Exploded . | . . . . Melee . | . . . . Uniques/NPCs Destroyed . | . . . . Combat | -11 -10 -10 -9 -------- Run | Jun Mat Min Mat Damage Taken 797 | . 180 256 361 Core 100 | . . 44 56 Absorbed by Shields . | . . . . Core Remaining (%) 91 | 100 . 82 . Volleys Fired 81 | . 17 25 39 Largest 2 | . 2 2 2 Hottest 128 | . 40 40 128 Shots Fired 132 | . 34 50 48 Gun 86 | . 34 50 2 Cannon 46 | . . . 46 Launcher . | . . . . Special . | . . . . Kinetic 86 | . 34 50 2 Thermal 46 | . . . 46 Explosive . | . . . . Electromagnetic . | . . . . Robot Hit Streak 17 | . 3 17 6 Robot Miss Streak 3 | . 2 2 3 Penetration Max . | . . . . Secondary Targets 3 | . 2 1 . Max Gunslinging Chain 1 | . 1 1 . Shots Hit Robots 83 | . 20 38 25 Core Hits 41 | . 11 17 13 Critical Kills 1 | . . . 1 Critical Parts Destroyed 1 | . . 1 . Critical Strikes 2 | . . 1 1 Meltdown 1 | . . . 1 Destroy 1 | . . 1 . Melee Attacks . | . . . . Impact . | . . . . Slashing . | . . . . Piercing . | . . . . Sneak Attacks . | . . . . Combat Hostiles . | . . . . Follow-up Attacks . | . . . . Damage Inflicted 1095 | . 208 406 481 Guns 627 | . 208 406 13 Cannons 442 | . . . 442 Explosions . | . . . . Melee . | . . . . Ramming 26 | . . . 26 Kinetic 627 | . 208 406 13 Thermal 442 | . . . 442 Explosive . | . . . . Electromagnetic . | . . . . Impact . | . . . . Slashing . | . . . . Piercing . | . . . . Highest Corruption . | . . . . Average Corruption . | . . . . Corruption Purged . | . . . . Corruption Blocked . | . . . . Overload Shots . | . . . . Overflow Damage 4 | . . . 4 Projectiles 4 | . . . 4 Explosions . | . . . . Melee . | . . . . Knockbacks . | . . . . Impact . | . . . . Kinetic . | . . . . Secondary . | . . . . Self-Inflicted Damage . | . . . . Shots . | . . . . Rammed 8 | . . . 8 Targets Rammed 9 | . . . 9 Kicked . | . . . . Crushed 1 | . . . 1 Highest Temperature 168 | . . 26 168 Average Temperature 42 | . . 6 59 Received Heat Transfer 327 | . 36 129 162 Siege Activations . | . . . . Robots Corrupted . | . . . . Combat Hostiles . | . . . . Parts Fried . | . . . . Impact Corruptions . | . . . . Robots Melted 1 | . . . 1 Combat Hostiles . | . . . . Parts Melted 4 | . . . 4 Heat Transferred 888 | . . . 888 Parts Sabotaged . | . . . . Parts Stolen . | . . . . Parts Stripped . | . . . . Power Chain Reactions . | . . . . Missiles Intercepted . | . . . . Alert | -11 -10 -10 -9 ------- Run | Jun Mat Min Mat Peak Influence 204 | . 175 142 204 Initial 67 | . . 67 . Average 81 | . 109 97 50 Maximum Alert Level 1 | . . . 1 Low Security (%) 98 | 100 100 100 95 Level 1 1 | . . . 4 Level 2 . | . . . . Level 3 . | . . . . Level 4 . | . . . . Level 5 . | . . . . High Security . | . . . . Max Security . | . . . . Squads Dispatched 4 | . 1 . 3 Investigation 2 | . 1 . 1 Extermination . | . . . . Reinforcement 2 | . . . 2 Assault . | . . . . Garrison . | . . . . Intercept . | . . . . Searches Triggered . | . . . . Construction Impeded . | . . . . Haulers Reinforced . | . . . . Active Scanning Responses . | . . . . Cargo Convoy Interrupts . | . . . . Stealth | -11 -10 -10 -9 --------- Run | Jun Mat Min Mat Distress Signals 1 | . . . 1 Communications Jammed . | . . . . Distress Signals . | . . . . Times Spotted 33 | . 11 7 15 Peak Tracking Total 5 | . 3 3 5 Tactical Retreats 1 | . . 1 . Traps | -11 -10 -10 -9 ------- Run | Jun Mat Min Mat Traps Triggered 2 | . 1 . 1 Indirectly . | . . . . Trap Hack Attempts . | . . . . Triggered . | . . . . Disarmed . | . . . . Reprogrammed . | . . . . Reused . | . . . . Traps Extracted . | . . . . Installed . | . . . . Triggered . | . . . . Machines | -11 -10 -10 -9 ---------- Run | Jun Mat Min Mat Machines Disabled . | . . . . Max in Single Turn . | . . . . Machines Repaired . | . . . . Machines Sabotaged . | . . . . Overloaded Fab Kills . | . . . . Hacking | -11 -10 -10 -9 --------- Run | Jun Mat Min Mat Machines Accessed 1 | . . . 1 Terminals 1 | . . . 1 Fabricators . | . . . . Repair Stations . | . . . . Recycling Units . | . . . . Scanalyzers . | . . . . Garrison Access . | . . . . Total Hacks 2 | . . . 2 Successful 1 | . . . 1 Failed 1 | . . . 1 Catastrophic . | . . . . Database Lockouts . | . . . . Manual 2 | . . . 2 Terminals 2 | . . . 2 Fabricators . | . . . . Repair Stations . | . . . . Recycling Units . | . . . . Scanalyzers . | . . . . Garrison Access . | . . . . Terminal Hacks . | . . . . Fabricator Hacks . | . . . . Repair Station Hacks . | . . . . Recycling Unit Hacks . | . . . . Scanalyzer . | . . . . Garrison Access Hacks . | . . . . Unauthorized Hacks 1 | . . . 1 Terminals 1 | . . . 1 Botnet 1 | . . . 1 Fabricators . | . . . . Repair Stations . | . . . . Recycling Units . | . . . . Scanalyzers . | . . . . Garrison Access . | . . . . Data Cores Recovered 1 | . 1 . . Used . | . . . . Hacking Detections 1 | . . . 1 Full Trace Events . | . . . . Feedback Events . | . . . . Feedback Blocked . | . . . . Robot Schematics Acquired . | . . . . Robots Built . | . . . . Authchips . | . . . . Time . | . . . . Total Robot Build Rating . | . . . . Part Schematics Acquired . | . . . . Parts Built . | . . . . Authchips . | . . . . Time . | . . . . Total Part Build Rating . | . . . . Parts Repaired . | . . . . Time . | . . . . Parts Recycled . | . . . . Recycled Matter . | . . . . Retrieved Matter . | . . . . Retrieved Components . | . . . . Parts Scanalyzed . | . . . . Part Schematics Acquired . | . . . . Parts Damaged . | . . . . Bothacking | -11 -10 -10 -9 ------------ Run | Jun Mat Min Mat Used RIF Installer . | . . . . Robots Hacked . | . . . . Non-combat . | . . . . Combat . | . . . . Robot Hacks Applied . | . . . . Relay Couplers Released . | . . . . Fabnet Peak Effective % . | . . . . Robots Rewired . | . . . . Allies Hacked . | . . . . Hacks Repelled . | . . . . Allies | -11 -10 -10 -9 -------- Run | Jun Mat Min Mat Total Allies . | . . . . Largest Group . | . . . . Highest-Rated Group . | . . . . Highest-Rated Ally . | . . . . Total Orders . | . . . . Ally Attacks . | . . . . Total Damage . | . . . . Kills . | . . . . Allies Corrupted . | . . . . Allies Melted . | . . . . Intel | -11 -10 -10 -9 ------- Run | Jun Mat Min Mat Robot Analysis Total . | . . . . Derelict Logs Recovered 2 | . . 2 . Drone Launches . | . . . . Drone Recoveries . | . . . . Exploration | -11 -10 -10 -9 ------------- Run | Jun Mat Min Mat Turns Passed 1759 | 78 307 867 507 Spaces Moved 939 | 58 155 491 235 Core 23 | 23 . . . Treads 916 | 35 155 491 235 Legs . | . . . . Wheels . | . . . . Hover . | . . . . Flight . | . . . . Fastest Speed 50 | 50 160 160 160 Average Speed 157 | 118 160 160 160 Slowest Speed 160 | 160 160 160 160 Overloaded Moves . | . . . . Propulsion Burnouts . | . . . . Robots Hopped . | . . . . Cave-ins Triggered . | . . . . Exploration Rate (%) 29 | 4 25 75 14 Regions Visited 3 Branch Regions 1 Pre-discovered Areas . | . . . . Known Exits Taken . | . . . . Unknown Exits Taken 3 | 1 1 1 . Scrap Searched 1 | . . 1 . Spaces Dug . | . . . . Terrain Destroyed . | . . . . Melee . | . . . . Projectile . | . . . . AOE . | . . . . Terrain Rammed . | . . . . Walls Destroyed . | . . . . Machines Disabled . | . . . . Actions | -11 -10 -10 -9 --------- Run | Jun Mat Min Mat Total 1083 | 64 183 528 308 Wait 28 | . 6 8 14 Move 936 | 57 154 490 235 Hop . | . . . . Pick Up 9 | 1 4 3 1 Fast Attach 11 | 6 1 . 4 Attach 2 | . . . 2 Detach 4 | . . . 4 Swap 2 | . 1 1 . Drop 1 | . . 1 . Fire 81 | . 17 25 39 Melee . | . . . . Ram . | . . . . Kick . | . . . . Crush 9 | . . . 9 Escape Stasis . | . . . . Rewire . | . . . . Trap . | . . . . Miscellaneous . | . . . . Route ------- -11/Junkyard -10/Materials (discovered 2 exits: *Mat / [*Min]) -10/Mines -9/Materials History --------- Turn | Location | Event 3 | -11/Junkyard | Discovered new exit (range 16) 79 | -11/Junkyard | Entered Materials 316 | -10/Materials | Build established: Mutant 345 | -10/Materials | Discovered new exit (range 14) 364 | -10/Materials | Discovered new exit (range 14) 386 | -10/Materials | Entered Mines 434 | -10/Mines | Discovered new exit (range 12) 1039 | -10/Mines | Assembled infested the area 1231 | -10/Mines | Learned Materials terminal intel 1253 | -10/Mines | Entered Materials 1253 | -9/Materials | Evolved 2 slots: Propulsion x1, Utility x1 1254 | -9/Materials | Loaded intel: 12 terminal locations 1760 | -9/Materials | Self-destructed Last Messages --------------- 01626_ Sensor Array melted. 01632_ R-06 Scavenger destroyed. 01638_ R-06 Scavenger collects Flight Unit. 01642_ R-06 Scavenger collects Sml. Laser. 01648_ R-06 Scavenger collects Lgt. Assault Rifle. 01652_ R-06 Scavenger collects Flight Unit. 01690_ ALERT: Hostiles spotted, dispatching reinforcements to Terminal M011. 01713_ Crushed M-13 Machinist. 01713_ M-13 Machinist destroyed. 01716_ Acquired Machine Analyzer. 01722_ Critical hit (Burn: +37). 01728_ Y-45 Defender destroyed. 01743_ Lgt. Treads destroyed. 01744_ Slammed into G-34 Mercenary. 01746_ Slammed into G-47 Trooper. 01747_ Lgt. Treads destroyed. 01748_ Slammed into G-47 Trooper. 01752_ Lgt. Nuclear Core destroyed. 01752_ Slammed into G-47 Trooper. Map ----- +----------------------------------------------------+ | ???????????????????????????????? | | ???????????????????????????????? | | ???????????????????????????????? | | ???????????????????????????????? | | ???????????????????????????????? | | ???????????????????????????????? | | ???????????????????????????????? | | ???????????????????????????????? | | ???????????????????????????????? | | ???????????????????????????????? | | ????????????????????????????#### | | ???????????????????????????# | | ???????????????????????????# | | ???????????????????????????# | | ???????????????????????????# # | | ?????????????????########### # | | ?????????????? #?# # # | | ?????????????? ### # # | | ?????????????? ?# # # | | ??????????????T ?# / # | | ?????????????? ?# # # | | ?????????????# #?# # # | | ?????????????# #?# # # | | ?????????????# #?# # # | | ????#+######## #?##+######## # | | ????# g@%%%%g #??#%#??????# # | | ????# ####### #### ##?????# | | ????????????# * #?????# # | | ????????????# #?????# # | | ????????????# #?????# # | | ????????????# ##+###?????# # | | ????????????# #??????????# # | | ???????????# [ ??????????# # | | ???????????# =%! +?????????# # | | ???????????+ * #?????????# # | | ???????????# #?????????# # | | ???????????# #?????????# # | | ???????????### ###?????????# # | | ?????????????# #???????????# ? | | ?????????????# #???????????# ? | | ?????????????# #???????????# ? | | ?????????????# ????????????? ? | | ?????????????? ????????????????? | | ?????????????? ????????????????? | | ?????????????? ????????????????? | | ???????????????????????????????? | | ???????????????????????????????? | | ???????????????????????????????? | | ???????????????????????????????? | | ???????????????????????????????? | +----------------------------------------------------+ Best States ------------- Heat Dissipation 38 Energy Generation 14 Energy Capacity 250 Matter Stores 300 Matter Capacity 300 Sight Range 16 Terrain Scan Density 10 Armor Coverage 150 Evasion (%) 50 Targeting Accuracy 5 Recoil Reduction 3 Item Schematics ----------------- None Robot Schematics ------------------ None Fabricated ------------ Nothing Alien Tech Used ----------------- None Achievements -------------- None Challenges ------------ None Game ------ Seed GravmagMobileArray Manual? 0 Play Time 00:13:42 Cumulative 137.3 hours Start 2023.11.03 @ 23:03:11 End 2023.11.04 @ 15:05:40 Sessions 2 Manual Loads 0 Difficulty Rogue Special Mode None Game No. 129 Rogue 129 Adventurer 0 Explorer 0 Win Type - Total 0 Types 0/0/0/0/0/0/0/0/0 Lore% 40 Gallery% 45 Achievement% 35 Wizard Run 0 Options --------- ASCII 1 Keyboard 1 Movement Numpad Keybinds 0 Fullscreen 1 Font 18/SmallcapsGlow Map View 76x50 Tactical HUD 1 Map Filters NONE Filters NONE Steam 1 RUN: 20e1c364-9226-4839-84d2-b25778b49828